{"text_format":"1","workbook":"xlsx","n_sheets":2,"sheets":["SAQ 4.0","Scoring"],"not_rendered":{"charts":0,"images":11,"macros":1,"external_links":0,"defined_names":2,"comments":2,"pivot_tables":0},"unopened":[],"bounds":{"document_bytes":16777216,"sheet_cells":100000,"rows_first":2000,"rows_last":500,"rows_between":2000,"halvings":0,"cell_chars":16384,"cell_head_chars":4096},"cells_cut":0,"cells_raw":0,"read":"whole","date_system":"1900"}

{"sheet":"SAQ 4.0","index":0,"n_rows":341,"n_cols":21,"rows_kept":341,"cut":false,"hidden":false,"merged":[[331,20,333,20],[340,10,340,20],[241,20,253,20],[245,11,245,16],[329,20,330,20],[20,11,20,20],[21,11,21,20],[21,10,30,10],[22,11,22,20],[336,10,336,20],[337,10,337,20],[23,11,23,20],[30,11,30,20],[296,20,301,20],[289,11,289,19],[56,20,65,20],[113,20,130,20],[209,20,222,20],[335,10,335,20],[29,12,29,13],[338,10,338,20],[57,12,57,15],[58,12,58,15],[59,12,59,15],[64,12,64,15],[340,0,340,9],[245,0,245,5],[277,1,277,5],[280,1,280,5],[281,1,281,2],[284,5,284,6],[289,0,289,8],[328,0,328,3],[298,0,298,4],[297,0,297,4],[307,2,307,3],[336,0,336,9],[337,0,337,9],[338,0,338,9],[339,0,339,9],[301,0,301,4],[339,10,339,20],[335,0,335,9],[191,20,208,20],[234,20,240,20],[146,20,166,20],[174,20,190,20],[167,20,172,20],[255,20,294,20],[284,16,284,17],[320,20,327,20],[223,20,233,20],[180,1,180,2],[181,1,181,2],[179,1,179,3],[165,12,165,15],[163,12,163,15],[189,12,189,15],[187,12,187,15],[179,12,179,15],[192,12,192,16],[193,13,193,17],[197,12,197,16],[203,12,203,16],[202,12,202,16],[221,12,221,16],[220,12,220,16],[246,11,246,13],[247,11,247,13],[248,11,248,13],[249,11,249,13],[298,12,298,15],[328,10,328,14],[180,12,180,15],[181,12,181,15],[183,12,183,15],[184,12,184,15],[0,0,0,1],[2,0,2,1],[9,0,9,9],[18,0,18,9],[21,0,21,9],[48,0,48,4],[23,0,23,9],[20,0,20,9],[10,0,10,9],[31,0,31,9],[34,0,34,9],[3,0,3,9],[19,0,19,9],[41,0,41,3],[36,0,36,4],[1,10,1,20],[2,10,2,20],[31,10,34,10],[10,11,10,20],[3,10,3,20],[12,12,12,14],[13,12,13,14],[15,12,15,14],[16,12,16,14],[17,11,17,14],[32,0,32,9],[8,11,8,19],[18,11,18,20],[19,11,19,20],[4,10,6,20],[9,11,9,19],[11,11,11,20],[8,10,20,10],[31,11,31,20],[32,11,32,20],[7,10,7,20],[87,0,87,2],[30,0,30,9],[35,0,35,9],[75,20,79,20],[35,10,35,19],[81,20,97,20],[94,12,94,15],[96,12,96,15],[80,10,80,19],[76,12,76,18],[77,12,77,18],[78,12,78,18],[71,12,71,17],[36,10,36,17],[37,12,37,13],[38,12,38,13],[48,10,48,17],[42,10,42,17],[43,12,43,13],[44,12,44,13],[86,0,86,4],[34,11,34,20],[33,0,33,9],[33,11,33,20],[129,12,129,15],[98,20,111,20],[109,12,109,16],[110,12,110,16],[132,12,132,16],[131,20,144,20],[36,20,55,20],[22,0,22,9],[42,0,42,4],[49,12,49,13],[50,12,50,13],[91,12,91,18],[86,12,86,18],[87,12,87,18],[88,12,88,18],[89,13,89,18],[90,12,90,18],[112,0,112,19],[99,12,99,17],[104,12,104,17],[119,12,119,13],[124,12,124,13],[127,12,127,15],[73,12,73,17],[133,13,133,16],[142,12,142,16],[143,12,143,16],[158,12,158,14],[157,12,157,14],[156,12,156,14],[155,12,155,14],[154,12,154,14],[152,12,152,14],[151,12,151,14],[306,11,306,12],[250,11,250,13],[251,11,251,13],[281,12,281,15],[283,12,283,15],[284,12,284,15],[287,12,287,15],[276,12,276,15],[275,12,275,15],[274,12,274,15],[272,12,272,15],[273,12,273,15],[271,12,271,15],[269,12,269,15],[268,12,268,15],[266,12,266,15],[265,12,265,15],[263,12,263,15],[262,12,262,15],[261,12,261,15],[260,12,260,15],[280,12,280,15],[279,12,279,15],[331,10,333,18],[331,19,333,19],[303,20,319,20],[314,15,314,16],[66,20,74,20],[307,11,307,12],[309,11,309,12],[311,11,311,12],[312,11,312,12],[313,11,313,12],[305,15,305,16],[306,15,306,16],[309,15,309,16],[310,15,310,16],[311,15,311,16],[312,15,312,16],[313,15,313,16],[290,12,290,15],[291,12,291,15],[292,12,292,15],[293,12,293,15],[294,12,294,15],[300,12,300,15],[299,12,299,15]]}
[null,null,"= Changes and additions"]
[null,"Text in blue","= comments for discussion ",null,null,null,null,null,null,null," SAQ 4.0 "]
[null,null,"= Deleted from 3.0 version"]
[null,null,null,null,null,null,null,null,null,null,"Selbstauskunftsfragebogen zum Thema Soziale Verantwortung der Unternehmen (CSR)/Nachhaltigkeit für Zulieferer in der Automobilbranche."]
[null,null,null,null,null,null,null,null,null,null,"Soziale Verantwortung der Unternehmen (CSR)/Nachhaltigkeit ist ein Prozess, der Unternehmen verpflichtet, Themen wie ökologische Nachhaltigkeit, Sozialverträglichkeit und Unternehmensführung in ihre Unternehmensstrategie, Betriebsabläufe und die Lieferkette zu integrieren.\n\n„DRIVE Sustainability“ formuliert ein Paket gemeinsamer Richtlinien – die Leitlinien –, in dem die an Lieferanten gestellten Erwartungen hinsichtlich der wichtigsten Aspekte der CSR/Nachhaltigkeit, wie Menschenrechte, Arbeitsbedingungen, Arbeitsschutz (Gesundheit und Sicherheit), Umwelt und Unternehmensethik skizziert werden.\n\nIm Einklang mit den Leitlinien wird mit diesem Selbstauskunftsfragebogen (SAQ) die Einhaltung der Lieferanten bezüglich CSR/Nachhaltigkeit eingeschätzt und bewertet. \nEr wurde im Jahr 2014 entwickelt und 2019* von den Partnern der Initiative Drive Sustainability – The Automotive Partnership überarbeitet. Aktuell wird er von elf Mitgliedern** eingesetzt und soll Doppelarbeit vermeiden sowie die Effizienz steigern. \n\nDer Fragebogen bezieht sich sowohl auf Unternehmens- als auch auf Standortebene:\n- Standort bezieht sich auf den „Industriestandort, an dem die Produktion/Leistungserbringung erfolgt“;\n- Hauptsitz bezieht sich auf das „lokale Verwaltungszentrum eines Unternehmens”.\n- Muttergesellschaft bezieht sich auf die „Gruppe/Holding, zu der der Lieferant gehört“;\n\nBeim Ausfüllen dieses Fragebogens können Lieferanten zur Erläuterung auf das Fragezeichen neben den einzelnen Fragen klicken. \n\n* Mitglieder der Arbeitsgruppe 2019: BMW Group, Daimler AG, Ford, Honda, Jaguar Land Rover, Scania CV AB, Toyota Motor Europe, Volkswagen Group, Volvo Cars und Volvo Group\n \n** Erstausrüster (OEM), die den Fragebogen einsetzen: BMW Group, Daimler AG, Ford, Fiat Chrysler Automobiles, Honda, Jaguar Land Rover, Scania CV AB, Toyota Motor Europe, Volkswagen Group, Volvo Cars und Volvo Group\n\n"]
[]
[]
[null,null,null,null,null,null,null,null,null,null,"Anleitung zum Ausfüllen des SAQ\nBei den meisten Fragen handelt es sich um Fragen mit einer Antwortmöglichkeit. Bitte stellen Sie sicher, dass Sie nur eine Antwortoption auswählen (sofern nicht anders angegeben), um Fehler bei der Auswertung zu vermeiden. Sie können Ihren SAQ-Score am Ende der Seite nach dem Ausfüllen des Fragebogens finden."]
[null,null,null,null,null,null,null,null,null,null,"STANDORT ","Name:",null,null,null,null,null,null,null,null,"HINTERGRUNDINFORMATIONEN"]
["Name :",null,null,null,null,null,null,null,null,null,null,"Adresse des Standortes (Land, Stadt und/oder Straße):",null,null,null,null,null,null,null,null,"Bitte geben Sie den Standort ein, wie von der DUNS-Nummer gefordert  "]
["Number of employees:",null,null,null,null,null,null,null,null,null,null,"Zahl der Mitarbeiter vor Ort (inkl. Vertragsarbeiter):"]
[null,null,null,null,null,null,null,null,null,null,null,"gemäß der offiziellen OECD-Definition"]
[null,null,null,null,null,null,null,null,null,null,null,false,"0-9 (Kleinstunternehmen)"]
[null,null,null,null,null,null,null,null,null,null,null,false,"10-49 (Kleinunternehmen)"]
[null,null,null,null,null,null,null,null,null,null,null,false,"50-249 (Mittleres Unternehmen)"]
[null,null,null,null,null,null,null,null,null,null,null,false,"250-499 (Großunternehmen)"]
[null,null,null,null,null,null,null,null,null,null,null,false,"≥500"]
[null,null,null,null,null,null,null,null,null,null,null,"Hauptsitz: ",null,null,null,false,false]
["Total yearly turnover:",null,null,null,null,null,null,null,null,null,null,"Lieferanten-Nummer: (Zutreffendes bitte ausfüllen)"]
["Name:",null,null,null,null,null,null,null,null,null,null,"DUNS-Nummer"]
["Location of site (country, city and/or address):",null,null,null,null,null,null,null,null,null,null,"Sonstige (bitte angeben):"]
["Number of employees working on site (incl. agency workers):",null,null,null,null,null,null,null,null,null,"MUTTERGESELLSCHAFT","Name:"]
["Headquarter: yes/no",null,null,null,null,null,null,null,null,null,null,"Adresse der Muttergesellschaft (Land, Stadt und/oder Straße):"]
["Supplier ID: (fill in those that apply)",null,null,null,null,null,null,null,null,null,null,"Mitarbeiterzahl: "]
[null,null,null,null,null,null,null,null,null,null,null,"gemäß der offiziellen OECD-Definition"]
[null,null,null,null,null,null,null,null,null,null,null,false,"0-9 (Kleinstunternehmen)"]
[null,null,null,null,null,null,null,null,null,null,null,false,"10-49 (Kleinunternehmen)"]
[null,null,null,null,null,null,null,null,null,null,null,false,"50-249 (Mittleres Unternehmen)"]
[null,null,null,null,null,null,null,null,null,null,null,false,"250-499 (Großunternehmen)"]
[null,null,null,null,null,null,null,null,null,null,null,false,"≥500"]
["DUNS number",null,null,null,null,null,null,null,null,null,null,"Geschäftsbereich: "]
["Name :",null,null,null,null,null,null,null,null,null,"Ausgefüllt von:","Name:"]
["Position:",null,null,null,null,null,null,null,null,null,null,"Position:"]
["E-mail:",null,null,null,null,null,null,null,null,null,null,"E-Mail:"]
["Tel:",null,null,null,null,null,null,null,null,null,null,"Tel.:"]
[null,null,null,null,null,null,null,null,null,null,"A. GESCHÄFTSFÜHRUNG (ALLGEMEIN)",null,null,null,null,null,null,null,null,null,"HINTERGRUNDINFORMATIONEN"]
[null,null,null,null,null,null,null,null,null,null,"1a. Gibt es in Ihrem Unternehmen eine für soziale Nachhaltigkeit hauptverantwortliche Person?*"]
["No",null,null,null,null,null,null,null,null,null,null,true,"Ja",null,null,null,null,null,null,false]
["Yes*, at company level",null,null,null,null,null,null,null,null,null,null,false,"Nein",null,null,null,null,null,null,false]
[null,"If yes, please provide:",null,"Name :","____________________________________",null,null,null,null,null,null,false,"Wenn ja, bitte angeben:",null,"Name:"]
[null,null,null,"e-mail :","____________________________________",null,null,null,null,null,null,null,null,null,"E-Mail:","____________________________________"]
[null,null,null,null,null,null,null,null,null,null,null,null,null,null,"Position","____________________________________"]
[null,null,null,null,null,null,null,null,null,null,"1b.  Gibt es in Ihrem Unternehmen eine für Compliance hauptverantwortliche Person?*"]
["No",null,null,null,null,null,null,null,null,null,null,false,"Ja",null,null,null,null,null,null,false]
["Yes*, at company level",null,null,null,null,null,null,null,null,null,null,false,"Nein",null,null,null,null,null,null,false]
[null,"If yes, please provide:",null,"Name :","____________________________________",null,null,null,null,null,null,null,"Wenn ja, bitte angeben:",null,"Name:","____________________________________"]
[null,null,null,"e-mail :","____________________________________",null,null,null,null,null,null,null,null,null,"E-Mail:","____________________________________"]
[null,null,null,null,null,null,null,null,null,null,null,null,null,null,"Position","____________________________________"]
[null,null,null,null,null,null,null,null,null,null,"1c. Gibt es in Ihrem Unternehmen eine für ökologische Nachhaltigkeit hauptverantwortliche Person?*"]
["No",null,null,null,null,null,null,null,null,null,null,false,"Ja",null,null,null,null,null,null,false]
["Yes*, at company level",null,null,null,null,null,null,null,null,null,null,false,"Nein",null,null,null,null,null,null,false]
[null,"If yes, please provide:",null,"Name :","____________________________________",null,null,null,null,null,null,null,"Wenn ja, bitte angeben:",null,"Name:","____________________________________"]
[null,null,null,"e-mail :","____________________________________",null,null,null,null,null,null,null,null,null,"E-Mail:","____________________________________"]
[null,null,null,null,null,null,null,null,null,null,null,null,null,null,"Position","____________________________________"]
["* Please fill out the contact details, even if the person is the same as above.",null,null,null,null,null,null,null,null,null,null,"* Bitte geben Sie die Kontaktdaten an, selbst wenn es dieselbe Person ist wie oben."]
[]
[null,null,null,null,null,null,null,null,null,null,"2. Veröffentlicht Ihr Unternehmen einen CSR-/Nachhaltigkeitsbericht?"]
["No",null,null,null,null,null,null,null,null,null,null,true,"Ja, nach GRI- bzw. anderen international anerkannten Standards",null,null,null,"Bitte geben Sie den Namen des international anerkannten Standards an ",null,"______________________________",false]
["Yes, according to other globally accepted standards",null,null,null,"Please provide the name of the globally accepted standard ___",null,null,null,null,"Please upload report",null,false,"Ja, aber nicht nach anderen international anerkannten Standards ",null,null,null,null,null,null,false]
[null,null,null,null,null,null,null,null,null,null,null,false,"Nein",null,null,null,null,null,null,false]
[]
["2a. Is your most recent report assured by a third party?",null,null,null,null,null,null,null,null,null,null,"2a. Sofern Frage 2 mit „Ja“ beantwortet wurde: Ist eine Prüfung/Bestätigung Ihres jüngsten Berichts durch einen Dritten erfolgt?"]
[null,"No",null,null,null,null,null,null,null,null,null,false,"Ja, das Bestätigungsschreiben ist in dem Bericht enthalten",null,null,null,null,null,null,false]
[null,"Yes","If yes, please provide the name of the third party and the assurance letter:________________",null,null,null,null,null,null,null,null,false,"Ja, aber das Bestätigungsschreiben ist nicht in dem Bericht enthalten",null,null,null,null,null,null,false]
[null,null,null,null,null,null,null,null,null,null,null,false,"Nein",null,null,null,null,null,null,false]
[]
[null,null,null,null,null,null,null,null,null,null,"3. Verfügt Ihr Unternehmen über einen Verhaltenskodex?",null,null,null,null,null,null,null,null,null,"Ein Verhaltenskodex ist ein Regelwerk, in dem die Verantwortlichkeiten oder die sachgerechte Praxis für eine Person (Mitarbeiter) und eine Organisation dargelegt sind. Dabei sollten soziale, ethische und ökologische Aspekte berücksichtigt werden "]
["No",null,null,null,null,null,null,null,null,null,null,false,"Ja",null,null,null,null,null,null,false]
["Yes","Please upload relevant document",null,null,null,null,null,null,null,null,null,false,"Nein",null,null,null,null,null,null,false]
[]
["3a. Is the Code of Conduct in place for this site?",null,null,null,null,null,null,null,null,null,null,"3a. Sofern Frage 3 mit „Ja“ beantwortet wurde: Organisieren Sie Schulungen zum Verhaltenskodex für Ihre Mitarbeiter?"]
[null,"No",null,null,null,null,null,null,null,null,null,false,"Ja",null,null,null,null,null,null,false]
[null,"Yes",null,null,null,null,null,null,null,null,null,false,"Nein, aber wir kommunizieren unseren Verhaltenskodex über Extranet/Broschüren usw.",null,null,null,null,null,null,false]
[null,null,null,null,null,null,null,null,null,null,null,false,"Nein",null,null,null,null,null,null,false]
[]
[null,null,null,null,null,null,null,null,null,null,"4. Gibt es in Ihrem Unternehmen einen Beschwerdemechanismus, durch den betroffene Interessengruppen und Rechteinhaber Beschwerden vorbringen und diese vom Unternehmen behandeln lassen können? ",null,null,null,null,null,null,null,null,null,"Gemäß dem UN-Rahmenwerk „Protect, Respect and Remedy” sind die Unternehmen dafür verantwortlich, die Menschenrechte zu respektieren, und sollen Abhilfe schaffen, wenn ihre Betriebe die Menschenrechte verletzt oder zu ihrer Verletzung beigetragen haben. Ein Beschwerdemechanismus auf operativer Ebene für diese potenziell von den Aktivitäten des Unternehmens Betroffenen wird als ein effektives Verfahren empfohlen, durch das Unternehmen Abhilfe ermöglichen können."]
[null,null,null,null,null,null,null,null,null,null,null,false,"Ja, wir verfügen über einen Beschwerdemechanismus, der sowohl unseren Mitarbeitern als auch externen Interessengruppen (z.B. Lieferanten, Gemeinschaften) und unserer gesamten Lieferkette zur Verfügung steht",null,null,null,null,null,null,false]
[null,null,null,null,null,null,null,null,null,null,null,false,"Ja, wir haben einen internen Beschwerdemechanismus, der nur den Mitarbeitern unseres Unternehmens zur Verfügung steht ",null,null,null,null,null,null,false]
["Yes (please specify)_________________________",null,null,null,null,null,null,null,null,null,null,false,"Nein",null,null,null,null,null,null,false]
[]
[null,null,null,null,null,null,null,null,null,null,"B. ARBEITSBEDINGUNGEN UND MENSCHENRECHTE",null,null,null,null,null,null,null,null,null,"HINTERGRUNDINFORMATIONEN"]
[null,null,null,null,null,null,null,null,null,null,"5. Verfügt Ihr Unternehmen über eine formelle Richtlinie zu Arbeitsbedingungen und Menschenrechten?"]
["Child labour and Young Workers",null,null,null,null,null,null,null,null,null,null,false,"Ja",null,null,null,null,null,null,false]
["Wages and Benefits",null,null,null,null,null,null,null,null,null,null,null,"Nein",null,null,null,null,null,null,false]
[]
["Working hours",null,null,null,null,null,null,null,null,null,"5a. Sofern Frage 5 mit „Ja“ beantwortet wurde: Welche der folgenden Bereiche werden von dieser Richtlinie abgedeckt? (Alle zutreffenden auswählen)"]
["Forced or compulsory labour and human trafficking",null,null,null,null,null,null,null,null,null,null,false,"Kinderarbeit und junge Arbeitnehmer",null,null,null,null,null,null,false]
["Freedom of association and collective bargaining",null,null,null,null,null,null,null,null,null,null,false,"Löhne und Sozialleistungen",null,null,null,null,null,null,false]
["Health and Safety",null,null,null,null,null,null,null,null,null,null,false,"Arbeitszeit",null,null,null,null,null,null,false]
["Harassment ",null,null,null,null,null,null,null,null,null,null,false,"Moderne Sklaverei (d.h. Sklaverei, Dienstbarkeit und erzwungene bzw. unter Zwang geleistete Arbeit und Menschenhandel)",null,null,null,null,null,null,false]
["Non-discrimination",null,null,null,null,null,null,null,null,null,null,false,"Vereinigungsfreiheit und Tarifverhandlungen",null,null,null,null,null,null,false]
[null,null,null,null,null,null,null,null,null,null,null,false,"Belästigung und Nichtdiskriminierung",null,null,null,null,null,null,false]
[]
[null,null,null,null,null,null,null,null,null,null,"5b. Sofern Frage 5 mit „Ja“ beantwortet wurde: Organisieren Sie Schulungen für Ihre Mitarbeiter zu dieser Richtlinie?"]
[null,"Others (please specify):",null,null,null,null,null,"Please upload relevant document",null,null,null,false,"Ja",null,null,null,null,null,null,false]
[null,null,null,null,null,null,null,null,null,null,null,false,"Nein, aber wir kommunizieren sie über Intranet/Broschüren usw.",null,null,null,null,null,null,false]
[null,null,null,null,null,null,null,null,null,null,null,false,"Nein",null,null,null,null,null,null,false]
[]
[null,null,null,null,null,null,null,null,null,null,"6. Verfügt Ihr Standort über ein Managementsystem zur Handhabung von Fragen der Arbeitsbedingungen und Menschenrechte?",null,null,null,null,null,null,null,null,null,"Ein Managementsystem umfasst eine Reihe dokumentierter Kontrollen, Prozesse und/oder Verfahren, die vom Management überprüft werden. Dabei kann es sich um ein internes bzw. um ein nach einem Standard entwickeltes System handeln (Zertifiziertes Managementsystem).\n\nBei einem dokumentierten Verfahren handelt es sich um eine schriftliche Beschreibung der vorgeschriebenen Vorgehensweisen bzw. Verfahren zur Steuerung und Überwachung der Aktivitäten der Organisation.\n\nZu den entsprechenden, weltweit anerkannten sozialen Standards zählen u. a.:\n- ISO 26000 Leitfaden zur gesellschaftlichen Verantwortung\n- SA8000 Zertifiziertes Managementsystem für soziale Verantwortung und angemessene Arbeitsbedingungen \n\n\nLieferanten mit gültigem Zertifikat, das aufgrund von Verzögerungen bei der Erstellung noch nicht hochgeladen werden kann, können dies in Abschnitt G. „Zusätzliche Informationen“ angeben, ergänzt um eine Stellungnahme der zertifizierenden Stelle."]
["Yes, we have documented procedures and policies",null,null,null,null,null,null,"Please upload relevant document",null,null,null,false,"Ja, wir verfügen über ein international anerkanntes, zertifiziertes Managementsystem",null,null,null,null,null,null,false]
[null,null,null,null,null,null,null,null,null,null,null,null,null,"Bitte folgende Informationen angeben: "]
[null,null,null,null,null,null,null,null,null,null,null,null,null,"Zertifizierende Stelle","______________________________"]
[null,null,null,null,null,null,null,null,null,null,null,null,null,"Zertifikat-Nr. ","______________________________"]
[null,null,null,null,null,null,null,null,null,null,null,null,null,"Gültig bis","______________________________"]
[null,null,null,null,null,null,null,null,null,null,null,false,"Ja, wir verfügen über ein national anerkanntes, zertifiziertes Managementsystem",null,null,null,null,null,null,false]
[null,null,null,null,null,null,null,null,null,null,null,null,null,"Bitte folgende Informationen angeben:"]
[null,"Social assessments",null,null,null,null,null,null,"Please upload relevant document",null,null,null,null,"Zertifizierende Stelle","______________________________"]
[null,"External 3rd party audits (please provide the following):",null,null,null,null,null,null,"Please upload relevant document",null,null,null,null,"Zertifikat-Nr.","______________________________"]
[null,"Awarding body",null,"______________________________",null,null,null,null,null,null,null,null,null,"Gültig bis","______________________________"]
[null,"Valid until",null,"______________________________",null,null,null,null,null,null,null,false,"Ja, aber das System ist nicht zertifiziert",null,null,null,null,null,null,false]
[null,null,null,null,null,null,null,null,null,null,null,false,"Nein",null,null,null,null,null,null,false]
[]
["C. ARBEITSSCHUTZ",null,null,null,null,null,null,null,null,null,null,null,null,null,null,null,null,null,null,null,"HINTERGRUNDINFORMATIONEN"]
[null,null,null,null,null,null,null,null,null,null,"7. Verfügt Ihr Unternehmen über eine formelle, schriftliche Arbeitsschutzrichtlinie, die den nationalen Gesetzen, Branchenanforderungen und internationalen Standards entspricht?",null,null,null,null,null,null,null,null,null,"\n"]
["No",null,null,null,null,null,null,null,null,null,null,false,"Ja",null,null,null,null,null,null,false]
["Yes",null,null,null,null,null,null,"Please upload relevant document",null,null,null,false,"Nein",null,null,null,null,null,null,false]
[]
[null,null,null,null,null,null,null,null,null,null,null,"7a. Sofern Frage 7 mit „Ja“ beantwortet wurde: Welche der folgenden Bereiche werden von dieser Richtlinie abgedeckt? (Alle zutreffenden auswählen)"]
[null,null,null,null,null,null,null,null,null,null,null,false,"Persönliche Schutzausrüstung",null,null,null,null,null,null,false]
[null,null,null,null,null,null,null,null,null,null,null,false,"Maschinensicherheit",null,null,null,null,null,null,false]
[null,null,null,null,null,null,null,null,null,null,null,null,"Katastrophenbereitschaft",null,null,null,null,null,null,false]
[null,null,null,null,null,null,null,null,null,null,null,null,"Stör- und Unfallmanagement",null,null,null,null,null,null,false]
[null,null,null,null,null,null,null,null,null,null,null,null,"Arbeitsplatz-Ergonomie",null,null,null,null,null,null,false]
[null,null,null,null,null,null,null,null,null,null,null,null,"Handhabung von Chemikalien",null,null,null,null,null,null,false]
[null,null,null,null,null,null,null,null,null,null,null,false,"Brandschutz",null,null,null,null,null,null,false]
[]
[null,null,null,null,null,null,null,null,null,null,null,"7b. Sofern Frage 7 mit „Ja“ beantwortet wurde: Organisieren Sie Schulungen für Ihre Mitarbeiter zu dieser Richtlinie?"]
[null,null,null,null,null,null,null,null,null,null,null,false,"Ja",null,null,null,null,null,null,false]
[null,null,null,null,null,null,null,null,null,null,null,false,"Nein, aber wir kommunizieren sie über Intranet/Broschüren usw.",null,null,null,null,null,null,false]
[null,null,null,null,null,null,null,null,null,null,null,false,"Nein",null,null,null,null,null,null,false]
[]
[null,null,null,null,null,null,null,null,null,null,"8. Verfügt Ihr Standort über ein Arbeitsschutz-Managementsystem?"]
[null,null,null,null,null,null,null,null,null,null,null,false,"Ja, wir verfügen über ein international anerkanntes, zertifiziertes Managementsystem",null,null,null,null,null,null,false]
[null,null,null,null,null,null,null,null,null,null,null,null,null,"Bitte folgende Informationen angeben: "]
["Yes we have a globally accepted certified health and safety management system",null,null,null,null,null,null,"Please upload relevant document",null,null,null,null,null,"Zertifizierende Stelle","______________________________"]
[null,null,null,null,null,null,null,null,null,null,null,null,null,"Zertifikat-Nr.","______________________________"]
["10a. If you answered \"Yes we have a globally accepted certified health and safety management system\", please indicate how you achieved certification:",null,null,null,null,null,null,null,null,null,null,null,null,"Gültig bis","______________________________"]
[null,null,null,null,null,null,null,null,null,null,null,false,"Ja, wir verfügen über ein national anerkanntes, zertifiziertes Managementsystem",null,null,null,null,null,null,false]
[null,null,null,null,null,null,null,null,null,null,null,null,null,"Bitte folgende Informationen angeben: "]
[null,null,null,null,null,null,null,null,null,null,null,null,null,"Zertifizierende Stelle","______________________________"]
[null,null,null,null,null,null,null,null,null,null,null,null,null,"Zertifikat-Nr.","______________________________"]
[null,null,null,null,null,null,null,null,null,null,null,null,null,"Gültig bis","______________________________"]
[null,null,null,null,null,null,null,null,null,null,null,null,"Ja, aber das System ist nicht zertifiziert",null,null,null,null,null,null,false]
[null,null,null,null,null,null,null,null,null,null,null,null,"Nein",null,null,null,null,null,null,false]
[]
[null,null,null,null,null,null,null,null,null,null,"D. UNTERNEHMENSETHIK",null,null,null,null,null,null,null,null,null,"HINTERGRUNDINFORMATIONEN"]
[null,null,null,null,null,null,null,null,null,null,"9. Verfügt Ihr Unternehmen über eine formelle Richtlinie zur Unternehmensethik?"]
["No",null,null,null,null,null,null,null,null,null,null,false,"Ja",null,null,null,null,null,null,false]
["Yes","please upload relevant document",null,null,null,null,null,null,null,null,null,false,"Nein",null,null,null,null,null,null,false]
[]
["11a. If answered yes to Q11, Are the following areas covered by this policy?",null,null,null,null,null,null,null,null,null,null,"9a. Sofern Frage 9 mit „Ja“ beantwortet wurde: Welche der folgenden Bereiche werden von dieser Richtlinie abgedeckt? (Alle zutreffenden auswählen)"]
[null,"Corruption, extortion and bribery",null,null,null,null,null,null,null,null,null,false,"Korruption, Erpressung und Bestechung",null,null,null,null,null,null,false]
[null,"Privacy",null,null,null,null,null,null,null,null,null,null,"Datenschutz",null,null,null,null,null,null,false]
[null,"Financial responsibility (Accurate Records)",null,null,null,null,null,null,null,null,null,null,"Finanzielle Verantwortung (genaue Aufzeichnungen)",null,null,null,null,null,null,false]
[null,"Disclosure of Information",null,null,null,null,null,null,null,null,null,null,"Offenlegung von Informationen",null,null,null,null,null,null,false]
[null,"Fair competition and anti-trust",null,null,null,null,null,null,null,null,null,false,"Fairer Wettbewerb und Kartellrecht",null,null,null,null,null,null,false]
[null,"Conflicts of interest",null,null,null,null,null,null,null,null,null,false,"Interessenkonflikte",null,null,null,null,null,null,false]
[null,"Counterfeit parts",null,null,null,null,null,null,null,null,null,false,"Plagiate",null,null,null,null,null,null,false]
[null,"Intellectual property",null,null,null,null,null,null,null,null,null,null,"Geistiges Eigentum",null,null,null,null,null,null,false]
[null,"Export controls and economic sanctions",null,null,null,null,null,null,null,null,null,null,"Ausfuhrkontrollen und Wirtschaftssanktionen",null,null,null,null,null,null,false]
[null,"Protection of Identity and Non-Retaliation",null,null,null,null,null,null,null,null,null,null,"Whistleblowing und Schutz vor Vergeltung",null,null,null,null,null,null,false]
[]
["11b. If answered yes to Q11, Does your company use any of the following channels to communicate its Policy to employees?",null,null,null,null,null,null,null,null,null,null,"9b. Sofern Frage 11 mit „Ja“ beantwortet wurde: Organisieren Sie Schulungen für Ihre Mitarbeiter zu dieser Richtlinie?"]
[null,"Intranet / Meetings / Brochures, etc.",null,null,null,null,null,"Please upload relevant document",null,null,null,false,"Ja",null,null,null,null,null,null,false]
[null,"Training",null,null,null,null,null,"Please upload relevant document",null,null,null,null,"Nein, aber wir kommunizieren sie über Intranet/Broschüren usw.",null,null,null,null,null,null,false]
[null,"Others (please specify):",null,null,null,null,null,"Please upload relevant document",null,null,null,null,"Nein",null,null,null,null,null,null,false]
[]
["No"]
["Yes ","Please upload relevant document"]
[]
[]
[]
[]
[null,null,null,null,null,null,null,null,null,null,"E. UMWELT",null,null,null,null,null,null,null,null,null,"HINTERGRUNDINFORMATIONEN"]
[null,null,null,null,null,null,null,null,null,null,"10. Verfügt Ihr Unternehmen über eine formelle Umweltrichtlinie, die eine Verpflichtung zu gesetzmäßigem Handeln, kontinuierlicher Messung und kontinuierlicher Verbesserung der Umweltleistung enthält?",null,null,null,null,null,null,null,null,null,"Eine Umweltrichtlinie zeigt die Absichten und die Richtung des Unternehmens insgesamt in Bezug auf seine Umweltleistung. Sie spiegelt das Bekenntnis des Unternehmens wider und wird formal durch die Geschäftsleitung ausgedrückt.\nSie bildet einen Handlungsrahmen und legt Umweltziele fest, die rechtliche und sonstige Anforderungen sowie die Umweltauswirkungen der Geschäftstätigkeit, der Produkte und Dienstleistungen des Unternehmens berücksichtigen, um diese Umweltauswirkungen zu verringern und gleichzeitig Ressourcen und Kosten einzusparen.\nDie folgende Aufstellung der Themen bezieht sich auf die Global Automotive Sustainability Guiding Principles (Hyperlink) und wird im zugehörigen Leitfadendokument (Guidance Document) erläutert.\nDiese Frage ist für alle Lieferanten relevant: direkte (Produktion, Aftermarket-Lieferanten usw.) und indirekte (Nichtproduktion, Dienstleistungsanbieter, Auftragnehmer usw.)"]
["No",null,null,null,null,null,null,null,null,null,null,null,"Ja",null,null,null,null,null,null,false]
["Yes","please upload relevant document",null,null,null,null,null,null,null,null,null,null,"Nein",null,null,null,null,null,null,false]
[]
["13a. Are the following areas covered by this policy or the related processes and working procedures?",null,null,null,null,null,null,null,null,null,null,"10a. Sofern Frage 10 mit „Ja“ beantwortet wurde: Welche der folgenden Bereiche werden von dieser Richtlinie abgedeckt? (Alle zutreffenden auswählen)"]
[null,"Energy consumption and greenhouse emissions",null,null,null,null,null,null,null,null,null,false,"Treibhausgasemissionen, Energieeffizienz und erneuerbare Energien",null,null,null,null,null,null,false]
[null,"Water quality and consumption",null,null,null,null,null,null,null,null,null,false,"Wasserqualität und -verbrauch",null,null,null,null,null,null,false]
[null,"Air quality",null,null,null,null,null,null,null,null,null,false,"Luftqualität",null,null,null,null,null,null,false]
[null,"Natural Resources Management and Waste Reduction",null,null,null,null,null,null,null,null,null,false,"Management nachhaltiger Ressourcen und Abfallreduzierung",null,null,null,null,null,null,false]
[null,"Responsible Chemical Management",null,null,null,null,null,null,null,null,null,null,"Verantwortungsbewusstes Chemikalienmanagement",null,null,null,null,null,null,false]
[null,"Other areas (please specify)",null,null,null,"________________________________",null,null,null,null,null,false,"Sonstige Bereiche (bitte angeben)",null,null,null,"_________________________________",null,null,false]
[]
["13b. Does your company have annual objectives and activities accordingly in the areas covered by your environmental policy?",null,null,null,null,null,null,null,null,null,null,"10b. Sofern Frage 13 mit „Ja“ beantwortet wurde: Organisieren Sie Schulungen für Ihre Mitarbeiter zu dieser Richtlinie?"]
[null,"No",null,null,null,null,null,null,null,null,null,false,"Ja",null,null,null,null,null,null,false]
[null,"Yes (please, upload relevant document explaining the objectives and the activties\n  to achieve them)",null,null,null,null,null,null,null,null,null,false,"Nein, aber wir kommunizieren sie über Intranet/Broschüren usw.",null,null,null,null,null,null,false]
[null,null,null,null,null,null,null,null,null,null,null,false,"Nein",null,null,null,null,null,null,false]
["13c. If answered yes to Q13, Does your company use any of the following channels to communicate its Policy to employees?"]
[null,null,null,null,null,null,null,null,null,null,"11. Verfügt Ihr Standort über ein Umweltmanagementsystem?",null,null,null,null,null,null,null,null,null,"\n"]
[null,null,null,null,null,null,null,null,null,null,null,false,"Ja, wir verfügen über ein international anerkanntes, zertifiziertes Managementsystem",null,null,null,null,null,null,false]
[null,null,null,null,null,null,null,null,null,null,null,null,null,"Bitte folgende Informationen angeben:"]
["Yes, according to ISO 14001:2015 or  EU Eco-Management and Audit Scheme (EMAS)",null,null,null,null,null,null,"Please upload relevant document",null,null,null,null,null,"Zertifizierende Stelle","______________________________"]
["Yes, according to other globally accepted standards",null,null,null,null,null,null,"Please provide the name of the globally accepted standard ____","Please upload relevant document","Please upload relevant document",null,null,null,"Zertifikat-Nr.","______________________________"]
[null,null,null,null,null,null,null,null,null,null,null,null,null,"Gültig bis","______________________________"]
[null,null,null,null,null,null,null,null,null,null,null,false,"Ja, wir verfügen über ein national anerkanntes, zertifiziertes Managementsystem",null,null,null,null,null,null,false]
[null,null,null,null,null,null,null,null,null,null,null,null,null,"Bitte folgende Informationen angeben:"]
[null,null,null,null,null,null,null,null,null,null,null,null,null,"Zertifizierende Stelle","______________________________"]
[null,null,null,null,null,null,null,null,null,null,null,null,null,"Zertifikat-Nr.","______________________________"]
[null,null,null,null,null,null,null,null,null,null,null,null,null,"Gültig bis","______________________________"]
[null,null,null,null,null,null,null,null,null,null,null,false,"Ja, aber das System ist nicht zertifiziert",null,null,null,null,null,null,false]
[null,null,null,null,null,null,null,null,null,null,null,false,"Nein",null,null,null,null,null,null,false]
[]
[null,null,null,null,null,null,null,null,null,null,null,"11a Verfügt Ihr Standort über ein Umweltprogramm, das Ziele, Aktivitäten und Leistungsüberwachung enthält, um seine Umweltleistung kontinuierlich zu verbessern?"]
[null,null,null,null,null,null,null,null,null,null,null,false,"Ja ",null,null,null,null,null,null,false]
[null,null,null,null,null,null,null,null,null,null,null,false,"Nein",null,null,null,null,null,null,false]
[]
[null,null,null,null,null,null,null,null,null,null,"12. Verfügt Ihr Standort über ein Energie-Managementsystem?",null,null,null,null,null,null,null,null,null,"Ein Energie-Managementsystem ist ein systematischer Prozess zur stetigen Verbesserung der Energieeffizienz und zur Maximierung der Energieeinsparungen.\n\nZu den entsprechenden, weltweit anerkannten Standards und Zertifizierungen zählen u. a.:\n- ISO 50001 – Energiemanagement\n\nLieferanten mit gültigem Zertifikat, das aufgrund von Verzögerungen bei der Erstellung noch nicht hochgeladen werden kann, können dies in Abschnitt G. „Zusätzliche Informationen“ angeben, ergänzt um eine Stellungnahme der zertifizierenden Stelle."]
[null,null,null,null,null,null,null,null,null,null,null,false,"Ja, wir verfügen über ein international anerkanntes, zertifiziertes Managementsystem",null,null,null,null,null,null,false]
[null,null,null,null,null,null,null,null,null,null,null,null,null,"Bitte folgende Informationen angeben:"]
["Yes, according to ISO 50001",null,null,null,null,null,null,"Please upload relevant document",null,null,null,null,null,"Zertifizierende Stelle","______________________________"]
[null,null,null,null,null,null,null,null,null,null,null,null,null,"Zertifikat-Nr.","______________________________"]
[null,null,null,null,null,null,null,null,null,null,null,null,null,"Gültig bis","______________________________"]
[null,null,null,null,null,null,null,null,null,null,null,false,"Ja, wir verfügen über ein national anerkanntes, zertifiziertes Managementsystem",null,null,null,null,null,null,false]
[null,null,null,null,null,null,null,null,null,null,null,null,null,"Bitte folgende Informationen angeben:"]
[null,null,null,null,null,null,null,null,null,null,null,null,null,"Zertifizierende Stelle","______________________________"]
[null,null,null,null,null,null,null,null,null,null,null,null,null,"Zertifikat-Nr.","______________________________"]
[null,null,null,null,null,null,null,null,null,null,null,null,null,"Gültig bis","______________________________"]
[null,null,null,null,null,null,null,null,null,null,null,false,"Ja, aber das System ist nicht zertifiziert",null,null,null,null,null,null,false]
[null,null,null,null,null,null,null,null,null,null,null,false,"Nein",null,null,null,null,null,null,false]
[]
[null,null,null,null,null,null,null,null,null,null,null,"12a Wissen Sie, wie viel Prozent der im Laufe des letzten Kalenderjahres an Ihrem Standort verwendeten Energie aus erneuerbaren Quellen stammt?",null,null,null,null,null,null,null,null,"Bei erneuerbaren Energiequellen handelt es sich um unerschöpfliche Energiequellen, die sich im Laufe der Zeit auf natürliche Weise wieder auffüllen. Die folgenden Energiequellen können als erneuerbar eingestuft werden:\n- Wind\n- Solar\n- Wasser\n- Biomasse\n- Geothermie\n- Meer"]
[null,null,null,null,null,null,null,null,null,null,null,false,"Ja",null,null,null,null,null,null,false]
[null,null,null,null,null,null,null,null,null,null,null,false,"Nein",null,null,null,null,null,null,false]
[]
[null,null,null,null,null,null,null,null,null,null,null,"12b Sofern Frage 12a mit „Ja“ beantwortet wurde, bitte den Prozentsatz (%) angeben:"]
[null,null,null,null,null,null,null,null,null,null,null,false,1,null,null,null,null,null,null,false]
[null,null,null,null,null,null,null,null,null,null,null,false,"75-99 %",null,null,null,null,null,null,false]
[null,null,null,null,null,null,null,null,null,null,null,false,"50-74 %",null,null,null,null,null,null,false]
[null,null,null,null,null,null,null,null,null,null,null,false,"25-49 %",null,null,null,null,null,null,false]
[null,null,null,null,null,null,null,null,null,null,null,false,"Weniger als 25 %",null,null,null,null,null,null,false]
[]
[null,null,null,null,null,null,null,null,null,null,"13. Verwendet Ihr Standort bei der Produktion oder im Betrieb Stoffe, die Einschränkungen unterliegen?",null,null,null,null,null,null,null,null,null,"\n"]
[null,null,null,null,null,null,null,null,null,null,null,false,"Ja",null,null,null,null,null,null,false]
[null,null,null,null,null,null,null,null,null,null,null,false,"Nein",null,null,null,null,null,null,false]
["No"]
["Yes","Please upload relevant document",null,null,null,null,null,null,null,null,null,"13a. Sofern Frage 14 mit „Ja“ beantwortet wurde: Verfügt ihr Standort über ein schriftliches Verfahren zur Handhabung von Stoffen, die Einschränkungen unterliegen?"]
[null,null,null,null,null,null,null,null,null,null,null,false,"Ja ",null,null,null,null,null,null,false]
[null,null,null,null,null,null,null,null,null,null,null,false,"Nein",null,null,null,null,null,null,false]
[null,null,null,null,null,null,null,null,null,null,"14. Verfügt Ihr Unternehmen über einen aktuellen CDP-Score?",null,null,null,null,null,null,null,null,null,"CDP nutzt die Scoring-Methodik, um Anreize für Unternehmen zu schaffen, durch die Teilnahme an den Programmen für Klimawandel, Wasser, Wälder und Lieferketten ihre Umweltauswirkungen zu messen und zu kontrollieren. Jeder CDP-Fragebogen (Klimawandel, Wasser und Wälder) weist ein individuelles Scoring-Verfahren auf. "]
["No",null,null,null,null,null,null,null,null,null,null,false,"Ja ",null,null,null,null,null,null,false]
["Yes",null,null,null,null,null,null,null,null,null,null,false,"Nein",null,null,null,null,null,null,false]
[]
["OPTIONAL - 18a. If answered yes, specify the score:",null,null,null,null,null,null,null,null,null,null,"14a. Sofern Frage 14 mit „Ja“ beantwortet wurde, bitte den Score angeben:"]
["Climate Change ",null,null,null,null,null,null,null,null,null,null,"Klimawandel "]
["Water ",null,null,null,null,null,null,null,null,null,null,"Wasser "]
["Forests - Cattle",null,null,null,null,null,null,null,null,null,null,"Wälder – Rinder"]
["Forests - Timber",null,null,null,null,null,null,null,null,null,null,"Wälder – Holz"]
["Forests - Soy",null,null,null,null,null,null,null,null,null,null,"Wälder – Soja"]
["Forests - Palm beneath Forests",null,null,null,null,null,null,null,null,null,null,"Wälder – „Palm beneath Forests“"]
[]
[]
[null,null,null,null,null,null,null,null,null,null,"F. LIEFERANTENMANAGEMENT",null,null,null,null,null,null,null,null,null,"HINTERGRUNDINFORMATIONEN"]
[null,null,null,null,null,null,null,null,null,null,"15. Gibt es in Ihrem Unternehmen festgelegte CSR-/Nachhaltigkeitsanforderungen für Lieferanten?",null,null,null,null,null,null,null,null,null,"Beispiele für eine CSR-/Nachhaltigkeitsrichtlinie für Lieferanten könnten ein konkreter Verhaltenskodex für Lieferanten bzw. ein Dokument für das Verhalten des Unternehmens sein, der/das sowohl für die internen Mitarbeiter als auch für externe Geschäftspartner wie beispielsweise Lieferanten gilt.\n\nZiel sollte es sein, gesunde Arbeitsbedingungen und ökologische Verantwortung in der gesamten Lieferkette zu fördern.\n\nUpstream-Lieferantenmanagement bezieht sich auf die Umsetzung der Nachhaltigkeitsanforderungen in der gesamten Lieferkette, d.h. zu gewährleisten, dass die Lieferanten die Anforderungen auch für ihre eigenen Lieferanten festlegen.\n\n"]
["No",null,null,null,null,null,null,null,null,null,null,false,"Ja",null,null,null,null,null,null,false]
["Yes","please upload relevant document",null,null,null,null,null,null,null,null,null,false,"Nein",null,null,null,null,null,null,false]
[]
["19a. Which areas are covered by this set of Requirements?",null,null,null,null,null,null,null,null,null,null,"15a. Sofern Frage 16 mit „Ja“ beantwortet wurde: Welche Bereiche werden durch diese Anforderungen abgedeckt? (Alle zutreffenden auswählen)"]
[null,null,null,null,null,null,null,null,null,null,null,false,"Arbeitsbedingungen und Menschenrechte"]
[null,"Child labour and Young Workers",null,null,null,null,null,null,null,null,null,false,"Kinderarbeit und junge Arbeitnehmer",null,null,null,null,null,null,false]
[null,"Wages and Benefits",null,null,null,null,null,null,null,null,null,false,"Löhne und Sozialleistungen",null,null,null,null,null,null,false]
[null,"Working hours",null,null,null,null,null,null,null,null,null,null,"Arbeitszeit",null,null,null,null,null,null,false]
[null,"Forced or compulsory labour and human trafficking",null,null,null,null,null,null,null,null,null,null,"Moderne Sklaverei (d.h. Sklaverei, Dienstbarkeit und erzwungene bzw. unter Zwang geleistete Arbeit und Menschenhandel)",null,null,null,null,null,null,false]
[null,"Freedom of association, incl. collective bargaining",null,null,null,null,null,null,null,null,null,null,"Vereinigungsfreiheit, einschl. Tarifverhandlungen",null,null,null,null,null,null,false]
[null,null,null,null,null,null,null,null,null,null,null,null,"Belästigung und Nichtdiskriminierung",null,null,null,null,null,null,false]
[]
[null,"Health and Safety",null,null,null,null,null,null,null,null,null,false,"Arbeitsschutz"]
[null,"Harassment ",null,null,null,null,null,null,null,null,null,false,"Arbeitsschutz",null,null,null,null,null,null,false]
[]
[null,null,null,null,null,null,null,null,null,null,null,false,"Unternehmensethik"]
[null,"Corruption, extortion and bribery",null,null,null,null,null,null,null,null,null,false,"Korruption, Erpressung und Bestechung",null,null,null,null,null,null,false]
[null,"Privacy",null,null,null,null,null,null,null,null,null,false,"Privatsphäre und Datenschutz",null,null,null,null,null,null,false]
[null,"Fair competition and anti-trust",null,null,null,null,null,null,null,null,null,null,"Fairer Wettbewerb und Kartellrecht",null,null,null,null,null,null,false]
[null,"Conflicts of interest",null,null,null,null,null,null,null,null,null,null,"Interessenkonflikte",null,null,null,null,null,null,false]
[null,"Protection of Identity and Non-Retaliation",null,null,null,null,null,null,null,null,null,null,"Whistleblowing und Schutz vor Vergeltung",null,null,null,null,null,null,false]
[null,"Energy consumption and greenhouse emissions"]
[null,null,null,null,null,null,null,null,null,null,null,null,"Umwelt"]
[null,null,null,null,null,null,null,null,null,null,null,null,"Treibhausgasemissionen, Energieeffizienz und erneuerbare Energien",null,null,null,null,null,null,false]
[null,"Water quality and consumption",null,null,null,null,null,null,null,null,null,null,"Wasserqualität und -verbrauch",null,null,null,null,null,null,false]
[null,"Air quality",null,null,null,null,null,null,null,null,null,null,"Luftqualität",null,null,null,null,null,null,false]
[null,"Natural Resources Management and Waste Reduction",null,null,null,null,null,null,null,null,null,null,"Management nachhaltiger Ressourcen und Abfallreduzierung",null,null,null,null,null,null,false]
[null,"Responsible Chemical Management",null,null,null,null,null,null,null,null,null,null,"Verantwortungsbewusstes Chemikalienmanagement",null,null,null,null,null,null,false]
[null,"Other areas (please specify)",null,null,null,"________________________________",null,null,null,null,null,null,"Sonstige Bereiche (bitte angeben)",null,null,null,"________________________________",null,null,false]
[]
[null,null,null,null,null,null,null,null,null,null,null,false,"Upstream-Lieferantenmanagement"]
[null,null,null,null,null,null,null,null,null,null,null,null,"Nachhaltigkeitsanforderungen für die eigenen Lieferanten",null,null,null,null,null,null,false]
[]
["19c. Does your company use any of the following channels to communicate its Supplier CSR/Sustainability Requirements to your suppliers?",null,null,null,null,null,null,null,null,null,null,"15b. Sofern Frage 16 mit „Ja“ beantwortet wurde: Nutzt Ihr Unternehmen einen der folgenden Kanäle, um Ihren Lieferanten die CSR-/Nachhaltigkeitsanforderungen zu vermitteln? (Alle zutreffenden auswählen)"]
[null,"Included in Terms and Conditions ",null,null,null,null,null,"please upload evidence",null,null,null,false,"In den allgemeinen Geschäftsbedingungen enthalten",null,null,null,null,null,null,false]
[null,"Supplier Meetings / Brochures, etc. / Social Media ",null,null,null,null,null,"please upload evidence",null,null,null,false,"Lieferantenschulung",null,null,null,null,null,null,false]
[null,"Supplier Training",null,null,null,null,null,"please upload evidence",null,null,null,false,"Verhaltenskodex für Lieferanten/Nachhaltigkeitsrichtlinie für Lieferanten",null,null,null,null,null,null,false]
[null,"Others (please specify):",null,null,null,null,null,"please upload evidence",null,null,null,false,"Unternehmenswebseite/Lieferantenportal",null,null,null,null,null,null,false]
[null,"None",null,null,null,null,null,null,null,null,null,false,"Keine",null,null,null,null,null,null,false]
[]
[null,null,null,null,null,null,null,null,null,null,null,"15c Über welche Prozesse verfügt Ihr Unternehmen, um zu prüfen, ob die Lieferanten Ihre Anforderungen erfüllen? (Alle zutreffenden auswählen)",null,null,null,null,null,null,null,null,"Bei einem Second-Party-Audit handelt es sich um eine externe Prüfung, die von Kunden oder von anderen im Namen der Kunden durchgeführt wird. Sie kann auch durch Aufsichtsbehörden oder jede externe Partei durchgeführt werden, die ein formales Interesse an einem Unternehmen hat. \n\nBei einem Third-Party-Audit handelt es sich um eine externe Prüfung, die von unabhängigen Organisationen wie beispielsweise Registrierungsstellen (Zertifizierungsstellen) oder Aufsichtsbehörden durchgeführt wird. \n(Quelle: ISO 19011 Auditierungsdefinitionen)"]
["Self-assessment questionnaire",null,null,null,null,null,null,null,null,null,null,false,"Third-Party-Audits, die von einer akkreditierten Zertifizierungsstelle durchgeführt werden",null,null,null,null,null,null,false]
["Audits conducted by the company",null,null,null,null,null,null,null,null,null,null,false,"Second-Party-Audits, die von Ihrem Unternehmen durchgeführt werden",null,null,null,null,null,null,false]
["3rd party audits conducted by a certificated audit body",null,null,null,null,null,null,null,null,null,null,false,"Selbstauskunftsfragebogen",null,null,null,null,null,null,false]
["None",null,null,null,null,null,null,null,null,null,null,false,"Keine",null,null,null,null,null,null,false]
["please upload relevant document"]
[null,null,null,null,null,null,null,null,null,null,"G. VERANTWORTUNGSBEWUSSTE BESCHAFFUNG VON ROHSTOFFEN",null,null,null,null,null,null,null,null,null,"HINTERGRUNDINFORMATIONEN"]
[null,null,null,null,null,null,null,null,null,null,"Diese Frage ist für Dienstleister nicht relevant",null,null,null,null,null,null,null,null,null,"Verantwortliche Materialbeschaffung:\nVon Unternehmen wird erwartet, mit der gebührenden Sorgfalt vorzugehen, um die Quelle der in ihren Produkten verwendeten Rohstoffe nachzuvollziehen.\nVon Unternehmen wird erwartet,\n- mit der gebührenden Sorgfalt vorzugehen, um das Beschaffungsgebiet der in ihren Produkten verwendeten Rohstoffe zu verstehen.\n- nicht wissentlich Produkte bereitzustellen, die Rohstoffe enthalten, die zu Menschenrechtsverletzungen, Bestechung und ethischen Verstößen beitragen oder sich negativ auf die Umwelt auswirken.\n- verifizierte konfliktfreie Hüttenwerke und Raffinerien für die Beschaffung von Zinn, Wolfram, Tantal und Gold zu nutzen, die in den von ihnen hergestellten Produkten enthalten sind. \n\nEin Leitfaden, welche Rohstoffe in Produkten enthalten sind, finden Sie im IMDS.\n\nFür mehr Informationen zu bevorzugten Materialien, Produzentenländer und damit verbundenen Fragen der ökologischen Nachhaltigkeit, Sozialverträglichkeit und Unternehmensführung, siehe Material Change Report (Hyperlink)."]
[null,null,null,null,null,null,null,null,null,null,"16. Ist eines der folgenden Materialien in Ihren Produkten enthalten? (Alle zutreffenden auswählen)"]
[null,null,null,null,null,null,null,null,null,null,false,"Aluminium/Bauxit",null,null,false,"Nickel"]
["No",null,null,null,null,null,null,null,null,null,false,"Kobalt",null,null,false,"Palladium"]
["Yes",null,"please upload evidence",null,null,null,null,null,null,null,null,"Kupfer",null,null,false,"Seltene Erden"]
[null,null,null,null,null,null,null,null,null,null,null,"Glas (Quarzsand)",null,null,false,"Gummi (natürlich)"]
[null,null,null,null,null,null,null,null,null,null,false,"Gold",null,null,null,"Stahl/Eisen"]
[null,null,null,null,null,null,null,null,null,null,null,"Graphit (natürlich)",null,null,null,"Tantal"]
[null,null,null,null,null,null,null,null,null,null,null,"Leder",null,null,null,"Zinn"]
[null,null,null,null,null,null,null,null,null,null,null,"Lithium",null,null,null,"Wolfram"]
[null,null,null,null,null,null,null,null,null,null,null,"Muskovit",null,null,null,"Zink"]
[null,null,null,null,null,null,null,null,null,null,null,null,null,null,null,"Keine",null,null,null,false]
[]
[null,null,null,null,null,null,null,null,null,null,null,"16a. Sofern Rohstoffe aus der obigen Liste ausgewählt wurden: Verfügt Ihr Unternehmen über eine Richtlinie für die verantwortungsbewusste Beschaffung dieser Rohstoffe? "]
[null,null,null,null,null,null,null,null,null,null,null,false,"Ja",null,null,null,null,null,null,false]
[null,null,null,null,null,null,null,null,null,null,null,false,"Nein",null,null,null,null,null,null,false]
[]
[null,null,null,null,null,null,null,null,null,null,null,"16b. Sofern Tantal, Zinn, Wolfram oder Gold ausgewählt wurden: Verfügt Ihr Unternehmen über ein unternehmensweites Berichtsformular für Konfliktmineralien (CMRT)?"]
["No",null,null,null,null,null,null,null,null,null,null,false,"Ja ",null,null,null,null,null,null,false]
["Yes ","Please complete and upload CMRT template, using the latest version from the Conflict Free Sourcing Initiative (CFSI) website",null,null,null,null,null,null,null,null,null,null,"Nein",null,null,null,null,null,null,false]
[]
[null,null,null,null,null,null,null,null,null,null,null,"16c. Sofern Kobalt ausgewählt wurde: Verfügt Ihr Unternehmen über ein unternehmensweites Berichtsformular für Kobalt (CRT)?"]
[null,null,null,null,null,null,null,null,null,null,null,false,"Ja ",null,null,null,null,null,null,false]
[null,null,null,null,null,null,null,null,null,null,null,null,"Nein",null,null,null,null,null,null,false]
[]
[null,null,null,null,null,null,null,null,null,null,"H.ZUSÄTZLICHE INFORMATIONEN"]
[null,null,null,null,null,null,null,null,null,null,"17. Bitte nutzen Sie den Platz unten, um zusätzliche Informationen (z. B. Kommentare zu Richtlinien, Zeitplan für die Zertifizierung usw.) bereitzustellen."]
[]
[null,null,null,null,null,null,null,null,null,null,"IHR SAQ-SCORE",null,null,null,null,null,null,null,null,{"$f":"Scoring!K151","v":0},"Weitere Informationen zur SAQ-Bewertungsmethodik finden Sie in der Mitteilung für Lieferanten zur Einführung des SAQ 4.0 (verfügbar unter: https://www.drivesustainability.org/wp-content/uploads/2020/06/Communication-to-suppliers-on-the-launch-of-SAQ-4.0.pdf)"]
[]
[]
[]
[null,null,null,null,null,null,null,null,null,null,"Drive Sustainability – The Automotive Partnership"]
[null,null,null,null,null,null,null,null,null,null,"BMW Group, Daimler AG, Ford, Honda, Jaguar Land Rover, Opel/Vauxhall, Scania CV AB, Toyota Motor Europe, Volkswagen Group, Volvo Cars und Volvo Group haben sich zusammengetan und „DRIVE Sustainability – The Automotive Partnership“ ins Leben gerufen.\n\nDiese von CSR Europe koordinierte Partnerschaft hat sich zum Ziel gesetzt, die Nachhaltigkeit in der gesamten Lieferkette in der Automobilindustrie durch die Förderung eines gemeinsamen Konzepts innerhalb der Branche und durch die Integration von Nachhaltigkeit im gesamten Beschaffungsprozess voranzutreiben. Es ist diesen 10 verantwortlichen Automobilherstellern ein großes Anliegen, dass den Personen, die Fahrzeuge oder Komponenten herstellen oder Dienstleistungen erbringen, angemessene Arbeitsbedingungen geboten werden und ihnen mit Würde und Respekt begegnet wird bei gleichzeitiger Minimierung der Umweltauswirkungen ihrer Branche und Förderung der Integrität im Geschäftsverkehr.\n\nDie Partnerschaft übernimmt die bisherige Arbeit der „Europäischen Arbeitsgruppe Automobil für Nachhaltigkeit in der Zulieferkette“ (European Automotive Working Group on Supply Chain Sustainability – EWGSCS) und baut auf dieser in dem Bestreben auf, sich von einer Gruppe zusammenarbeitender Unternehmen zu einer Spitzeninitiative in der Branche zu entwickeln, die sich für innovative und wirkungsvolle Ansätze zur Verbesserung der Nachhaltigkeit in der Lieferkette einsetzt.\n\nDrive Sustainability unterliegt strengen kartellrechtlichen Maßnahmen."]
[null,null,null,null,null,null,null,null,null,null,"Über CSR Europe"]
[null,null,null,null,null,null,null,null,null,null,"CSR Europe ist das führende europäische Business-Netzwerk für Corporate Social Responsibility. Mit 48 Firmenmitgliedern und 42 nationalen CSR-Organisationen ist es eine Plattform, die über 0.000 Unternehmen aus unterschiedlichen Industriezweigen dabei unterstützt, einen konstruktiven gesellschaftlichen Beitrag zu leisten."]
[null,null,null,null,null,null,null,null,null,null,"Der Selbstauskunftsfragebogen kann unter folgenden Bedingungen verwendet werden:"]
[null,null,null,null,null,null,null,null,null,null,"Sie dürfen: \nTeilen – das Material in jedem beliebigen Medium oder Format kopieren und verteilen. Der Lizenzgeber kann diese Freiheiten nicht widerrufen, solange Sie sich an die Lizenzbedingungen halten. \n\nGemäß folgender Bedingungen: \nNamensnennung – Sie müssen die Quelle entsprechend angeben, einen Link auf die Lizenz setzen und angeben, ob Änderungen vorgenommen wurden. Dies kann in jeder angemessenen Weise erfolgen, solange nichts darauf hinweist, dass der Lizenzgeber Sie oder Ihre Nutzung unterstützt. \n\nNicht kommerziell – Sie dürfen das Material nicht für kommerzielle Zwecke einsetzen. \n\nKeine Bearbeitung – Wenn Sie das Material umarbeiten, umwandeln oder darauf aufbauen, dürfen Sie das geänderte Material nicht verbreiten. \n\nKeine zusätzlichen Einschränkungen – Sie dürfen keine rechtlichen oder technischen Maßnahmen anwenden, die Andere rechtlich darin einschränken, etwas zu unternehmen, was gemäß der Lizenz erlaubt ist. \n\nHinweise: \nSie müssen die Lizenz nicht für gemeinfreie Elemente des Materials befolgen oder wenn Ihre Nutzung durch eine anwendbare Ausnahme oder Einschränkung zulässig ist. \nJede Garantie ist ausgeschlossen. Möglicherweise gewährt Ihnen die Lizenz nicht alle Berechtigungen, die Sie für die beabsichtigte Verwendung benötigen. Beispielsweise können andere Rechte, wie Werbung, Datenschutz oder moralische Rechte, Ihre Nutzung des Materials einschränken."]

{"sheet":"Scoring","index":1,"n_rows":151,"n_cols":21,"rows_kept":151,"cut":false,"hidden":true,"merged":[[138,3,138,4],[139,1,147,1],[139,2,147,2],[139,3,140,3],[139,9,147,9],[141,3,142,3],[143,3,144,3],[145,3,146,3],[147,3,147,4],[108,1,138,1],[108,2,138,2],[108,3,109,3],[108,9,138,9],[110,3,128,3],[129,3,133,3],[134,3,137,3],[108,8,138,8],[139,8,147,8],[102,3,102,4],[103,1,107,1],[103,2,107,2],[103,3,104,3],[103,9,107,9],[105,3,106,3],[98,8,102,8],[103,8,107,8],[2,10,8,10],[2,8,8,8],[9,8,16,8],[9,10,16,10],[107,3,107,4],[98,1,102,1],[98,2,102,2],[98,3,101,3],[91,3,94,3],[91,9,97,9],[95,3,96,3],[97,3,97,4],[78,3,78,4],[79,1,90,1],[79,2,90,2],[79,3,80,3],[81,3,86,3],[87,3,89,3],[90,3,90,4],[91,1,97,1],[91,2,97,2],[79,8,90,8],[91,8,97,8],[58,3,61,3],[58,9,62,9],[62,3,62,4],[63,1,78,1],[63,2,78,2],[63,3,64,3],[63,9,78,9],[65,3,74,3],[75,3,77,3],[58,1,62,1],[58,2,62,2],[58,8,62,8],[63,8,78,8],[47,3,52,3],[53,3,55,3],[56,3,56,4],[57,3,57,4],[39,3,39,4],[40,1,44,1],[40,2,44,2],[40,3,43,3],[40,9,44,9],[44,3,44,4],[45,1,57,1],[45,2,57,2],[45,3,46,3],[40,8,44,8],[45,8,57,8],[23,1,26,1],[23,2,26,2],[23,3,25,3],[23,9,26,9],[26,3,26,4],[27,1,39,1],[27,2,39,2],[27,3,28,3],[27,9,39,9],[29,3,34,3],[35,3,37,3],[38,3,38,4],[23,8,26,8],[27,8,39,8],[17,1,22,1],[17,2,22,2],[17,3,18,3],[17,9,22,9],[19,3,21,3],[22,3,22,4],[2,9,8,9],[4,3,5,3],[6,3,7,3],[8,3,8,4],[9,1,16,1],[9,2,16,2],[9,3,11,3],[9,9,16,9],[12,3,14,3],[15,3,15,4],[16,3,16,4],[2,1,8,1],[2,2,8,2],[2,3,3,3],[17,8,22,8],[98,10,102,10],[103,10,107,10],[108,10,138,10],[139,10,147,10],[45,9,57,9],[98,9,102,9],[17,10,22,10],[23,10,26,10],[27,10,39,10],[40,10,44,10],[45,10,57,10],[58,10,62,10],[63,10,78,10],[79,10,90,10],[91,10,97,10],[79,9,90,9]]}
[null,"SAQ 4.0 Scoring System"]
[null,"Indicator","Priority category","Question","Answers","Answers ","Answer scores","Score","Pre score","k*","Score",null,"*Calculation of k"]
[null,"Responsible management person","Low","1a. Does your company have a Social Sustainability responsible management person?*","Yes",{"$f":"'SAQ 4.0'!T38","v":false},{"$f":"IF(F3,1,0)","v":0},0.33,{"$f":"SUMPRODUCT(G3:G8,H3:H8)","v":0},{"$f":"N7","v":3.7499999999999999E-2},{"$f":"I3*J3","v":0},null,"Priority category","Low","Medium","High"]
[null,null,null,null,"No",{"$f":"'SAQ 4.0'!T39","v":false},{"$f":"IF(F4,1,0)","v":0},0,null,null,null,null,"Number of indicators",4,6,5]
[null,null,null,"1b.  Does your company have a Compliance  responsible management person?*","Yes",{"$f":"'SAQ 4.0'!T44","v":false},0,0.33,null,null,null,null,"List of indicators","- Energy management system\n- Grievance mechanism\n- Responsible management person for social, compliance, and environmental issues\n- CSR/Sustainability report","- Policy on working conditions and human rights\n- Policy on responsible sourcing of raw materials\n- Policy on health & safety\n- Policy on environment - Policy on business ethics\n- Procedures to manage substances with restrictions","- CSR/Sustainability requirements towards suppliers\n- Environmental management system\n- Code of Conduct\n- management system for working conditions and human rights\n- Management system for health and safety"]
[null,null,null,null,"No",{"$f":"'SAQ 4.0'!T45","v":false},0,0,null,null,null,null,"Priority %",0.15,0.35,0.5]
[null,null,null,"1c. Does your company have an Environmental Sustainability  responsible management person?*","Yes",{"$f":"'SAQ 4.0'!T50","v":false},0,0.33,null,null,null,null,"k = priority % / number of indicators",{"$f":"N6/N4","v":3.7499999999999999E-2},{"$f":"O6/O4","v":5.8333333333333327E-2},0.1]
[null,null,null,null,"No",{"$f":"'SAQ 4.0'!T51","v":false},0,0,null,null,null,null,null,null,null,null,null,null,"Criteria","actual","maximum"]
[null,null,null,"Max score for indicator",null,null,{"$f":"SUM(G3:G8)","v":0},{"$f":"SUM(H3:H8)","v":0.99},null,null,null,null,null,null,null,null,null,null,"Responsible management person",{"$f":"K3","v":0}]
[null,"CSR/Sustainability report","Low","2. Does your company publish a CSR/Sustainability Report?","Yes, according to GRI or other globally accepted standards",{"$f":"'SAQ 4.0'!T58","v":false},{"$f":"IF(F10,1,0)","v":0},0.8,{"$f":"SUMPRODUCT(G10:G15,H10:H15)","v":0},{"$f":"N7","v":3.7499999999999999E-2},{"$f":"I10*J10","v":0},null,null,null,null,null,null,null,"CSR/Sustainability report",{"$f":"K10","v":0}]
[null,null,null,null,"Yes, but not according to globally accepted standards ",{"$f":"'SAQ 4.0'!T59","v":false},0,0.4,null,null,null,null,null,null,null,null,null,null,"Code of Conduct",{"$f":"K18","v":0}]
[null,null,null,null,"No",{"$f":"'SAQ 4.0'!T60","v":false},0,0,null,null,null,null,null,null,null,null,null,null,"Grievance mechanism",{"$f":"K24","v":0}]
[null,null,null,"2a. Is your most recent report assured by a third party?","Yes, the assurance letter is included in the report",{"$f":"'SAQ 4.0'!T63","v":false},0,0.2,null,null,null,null,null,null,null,null,null,null,"Policy on working conditions and human rights",{"$f":"K28","v":0}]
[null,null,null,null,"Yes, but the assurance letter is not included in the report",{"$f":"'SAQ 4.0'!T64","v":false},0,0.2,null,null,null,null,null,null,null,null,null,null,"Management system for working conditions and human rights",{"$f":"K41","v":0}]
[null,null,null,null,"No",{"$f":"'SAQ 4.0'!T65","v":false},0,0,null,null,null,null,null,null,null,null,null,null,"Policy on helath & safety",{"$f":"K46","v":0}]
[null,null,null,"Max score for question",null,null,0,0.2,null,null,null,null,null,null,null,null,null,null,"Management system for health and safety",{"$f":"K59","v":0}]
[null,null,null,"Max score for indicator",null,null,1,1,null,null,null,null,null,null,null,null,null,null,"Policy on business ethics",{"$f":"K64","v":0}]
[null,"Code of Conduct","High","3. Does your company have a Code of Conduct?","Yes",{"$f":"'SAQ 4.0'!T68","v":false},0,0.6,{"$f":"SUMPRODUCT(G18:G22,H18:H22)","v":0},{"$f":"P7","v":0.1},{"$f":"I18*J18","v":0},null,null,null,null,null,null,null,"Policy on environment",{"$f":"K80","v":0}]
[null,null,null,null,"No",{"$f":"'SAQ 4.0'!T69","v":false},0,0,null,null,null,null,null,null,null,null,null,null,"Environmental management system",{"$f":"K92","v":0}]
[null,null,null,"3a. If answered \"Yes\" to Q3, do you organise training for your employees on the Code of Conduct?","Yes",{"$f":"'SAQ 4.0'!T72","v":false},0,0.4,null,null,null,null,null,null,null,null,null,null,"Energy management system",{"$f":"K99","v":0}]
[null,null,null,null,"No, but we communicate the Code of Conduct through extranet/brochures, etc.",{"$f":"'SAQ 4.0'!T73","v":false},0,0.2,null,null,null,null,null,null,null,null,null,null,"Procedures to manage substances with restrictions",{"$f":"K104","v":0}]
[null,null,null,null,"No",{"$f":"'SAQ 4.0'!T74","v":false},0,0,null,null,null,null,null,null,null,null,null,null,"CSR/Sustainability requirements towards suppliers",{"$f":"K109","v":0}]
[null,null,null,"Max score for indicator",null,null,0,1,null,null,null,null,null,null,null,null,null,null,"Policy on responsible sourcing of raw materials",{"$f":"K140","v":0}]
[null,"Grievance mechanism","Low","4. Does your company provide an operational-level grievance mechanism (OLGM) through which impacted stakeholders and rightsholders can raise complaints and seek to have them addressed with the enterprise? ","Yes, we have an internal grievance mechanism, which is available for the employees of our company, only ",{"$f":"'SAQ 4.0'!T77","v":false},0,0.5,{"$f":"SUMPRODUCT(G24:G26,H24:H26)","v":0},{"$f":"N7","v":3.7499999999999999E-2},{"$f":"I24*J24","v":0}]
[null,null,null,null,"Yes, we have a grievance mechanism, which is available for our employees as well as for external stakeholders (e.g. suppliers, communities) and our whole supply chain",{"$f":"'SAQ 4.0'!T78","v":false},0,1]
[null,null,null,null,"No",{"$f":"'SAQ 4.0'!T79","v":false},0,0]
[null,null,null,"Max score for indicator",null,null,0,1]
[null,"Policy on working conditions and human rights","Medium","5. Does your company have a formal policy regarding working conditions & human rights?","Yes",{"$f":"'SAQ 4.0'!T83","v":false},0,0,{"$f":"SUMPRODUCT(G28:G38,H28:H38)","v":0},{"$f":"O7","v":5.8333333333333327E-2},{"$f":"J28*I28","v":0}]
[null,null,null,null,"No",{"$f":"'SAQ 4.0'!T84","v":false},0,0]
[null,null,null,"5a. If answered \"Yes\" to Q5, which of the following areas are covered by this policy or the related processes and procedures?","Child labour and Young Workers",{"$f":"'SAQ 4.0'!T87","v":false},0,0.1]
[null,null,null,null,"Wages and Benefits",{"$f":"'SAQ 4.0'!T88","v":false},0,0.1]
[null,null,null,null,"Working hours",{"$f":"'SAQ 4.0'!T89","v":false},0,0.1]
[null,null,null,null,"Forced or compulsory labour and human trafficking including modern slavery",{"$f":"'SAQ 4.0'!T90","v":false},0,0.1]
[null,null,null,null,"Freedom of association and collective bargaining",{"$f":"'SAQ 4.0'!T91","v":false},0,0.1]
[null,null,null,null,"Harassment and non-discrimination",{"$f":"'SAQ 4.0'!T92","v":false},0,0.1]
[null,null,null,"5b. If answered \"Yes\" to Q5, do you organize training for your employees on this policy?","Yes",{"$f":"'SAQ 4.0'!T95","v":false},0,0.4]
[null,null,null,null,"No, but we communicate it through Intranet/ Brochures, etc.",{"$f":"'SAQ 4.0'!T96","v":false},0,0.2]
[null,null,null,null,"No",{"$f":"'SAQ 4.0'!T97","v":false},0,0]
[null,null,null,"Max score for question",null,null,0,0.4]
[null,null,null,"Max score for indicator",null,null,0,1]
[null,"Management system for working conditions and human rights","High","6. Does this site have a management system in place to manage the above mentioned working conditions and human rights issues?","Yes, we have an internationally recognised certified management system",{"$f":"'SAQ 4.0'!T100","v":false},0,1,{"$f":"SUMPRODUCT(G41:G44,H41:H44)","v":0},{"$f":"P7","v":0.1},{"$f":"I41*J41","v":0}]
[null,null,null,null,"Yes, we have a nationally recognised certified management system",{"$f":"'SAQ 4.0'!T105","v":false},0,0.75]
[null,null,null,null,"Yes, but the system is not certified",{"$f":"'SAQ 4.0'!T110","v":false},0,0.5]
[null,null,null,null,"No",{"$f":"'SAQ 4.0'!T111","v":false},0,0]
[null,null,null,"Max score for indicator",null,null,0,1]
[null,"Policy on helath & safety","Medium","7. Does your company have a formal health & safety policy in place?","Yes",{"$f":"'SAQ 4.0'!T115","v":false},0,0,{"$f":"SUMPRODUCT(G46:G56,H46:H56)","v":0},{"$f":"O7","v":5.8333333333333327E-2},{"$f":"I46*J46","v":0}]
[null,null,null,null,"No",{"$f":"'SAQ 4.0'!T116","v":false},0,0]
[null,null,null,"7a. If answered \"Yes\" to Q7, which of the following areas are covered by this policy or the related processes and procedures?","Personal Protective Equipment",{"$f":"'SAQ 4.0'!T119","v":false},0,0.1]
[null,null,null,null,"Machine Safety",{"$f":"'SAQ 4.0'!T120","v":false},0,0.1]
[null,null,null,null,"Emergency Preparedness",{"$f":"'SAQ 4.0'!T121","v":false},0,0.1]
[null,null,null,null,"Incident and Accident Management",{"$f":"'SAQ 4.0'!T122","v":false},0,0.1]
[null,null,null,null,"Workplace Ergonomics",{"$f":"'SAQ 4.0'!T123","v":false},0,0.1]
[null,null,null,null,"Handling of chemicals",{"$f":"'SAQ 4.0'!T124","v":false},0,0.1]
[null,null,null,"7b. If answered \"Yes\" to Q7, do you organize training for your employees on this policy?","Yes",{"$f":"'SAQ 4.0'!T128","v":false},0,0.4]
[null,null,null,null,"No, but we communicate it through Intranet/ Brochures, etc.",{"$f":"'SAQ 4.0'!T129","v":false},0,0.2]
[null,null,null,null,"No",{"$f":"'SAQ 4.0'!T130","v":false},0,0]
[null,null,null,"Max score for question",null,null,0,0.4]
[null,null,null,"Max score for indicator",null,null,0,1]
[null,"Management system for health and safety","High","8. Does this site have a health and safety management system in place?","Yes, we have an internationally recognised certified management system",{"$f":"'SAQ 4.0'!T133","v":false},0,1,{"$f":"SUMPRODUCT(G59:G62,H59:H62)","v":0},{"$f":"P7","v":0.1},{"$f":"I59*J59","v":0}]
[null,null,null,null,"Yes, we have a nationally recognised certified management system",{"$f":"'SAQ 4.0'!T138","v":false},0,0.75]
[null,null,null,null,"Yes, but the system is not certified",{"$f":"'SAQ 4.0'!T143","v":false},0,0.5]
[null,null,null,null,"No",{"$f":"'SAQ 4.0'!T144","v":false},0,0]
[null,null,null,"Max score for indicator",null,null,0,1]
[null,"Policy on business ethics","Medium","9. Does your company have a formal policy in place regarding business ethics?","Yes",{"$f":"'SAQ 4.0'!T148","v":false},0,0,{"$f":"SUMPRODUCT(G64:G78,H64:H78)","v":0},{"$f":"O7","v":5.8333333333333327E-2},{"$f":"I64*J64","v":0}]
[null,null,null,null,"No",{"$f":"'SAQ 4.0'!T149","v":false},0,0]
[null,null,null,"9a. If answered \"Yes\" to Q9, which of the following areas are covered by this policy?","Corruption, extortion and bribery",{"$f":"'SAQ 4.0'!T152","v":false},0,0.06]
[null,null,null,null,"Privacy",{"$f":"'SAQ 4.0'!T153","v":false},0,0.06]
[null,null,null,null,"Financial responsibility (Accurate Records)",{"$f":"'SAQ 4.0'!T154","v":false},0,0.06]
[null,null,null,null,"Disclosure of Information",{"$f":"'SAQ 4.0'!T155","v":false},{"$f":"IF(F69,1,0)","v":0},0.06]
[null,null,null,null,"Fair competition and anti-trust",{"$f":"'SAQ 4.0'!T156","v":false},0,0.06]
[null,null,null,null,"Conflicts of interest",{"$f":"'SAQ 4.0'!T157","v":false},0,0.06]
[null,null,null,null,"Counterfeit parts",{"$f":"'SAQ 4.0'!T158","v":false},0,0.06]
[null,null,null,null,"Intellectual property",{"$f":"'SAQ 4.0'!T159","v":false},0,0.06]
[null,null,null,null,"Export controls and economic sanctions",{"$f":"'SAQ 4.0'!T160","v":false},0,0.06]
[null,null,null,null,"Whistleblowing and protection against retaliation",{"$f":"'SAQ 4.0'!T161","v":false},0,0.06]
[null,null,null,"9b. If answered \"Yes\" to Q11, do you organize training for your employees on this policy?","Yes",{"$f":"'SAQ 4.0'!T164","v":false},0,0.4]
[null,null,null,null,"No, but we communicate it through Intranet/ Brochures, etc.",{"$f":"'SAQ 4.0'!T165","v":false},0,0.2]
[null,null,null,null,"No",{"$f":"'SAQ 4.0'!T166","v":false},0,0]
[null,null,null,"Max score for indicator",null,null,0,1]
[null,"Policy on environment","Medium","10. Does your company have a formal environmental policy in place?","Yes",{"$f":"'SAQ 4.0'!T176","v":false},0,0,{"$f":"SUMPRODUCT(G80:G90,H80:H90)","v":0},{"$f":"O7","v":5.8333333333333327E-2},{"$f":"I80*J80","v":0}]
[null,null,null,null,"No",{"$f":"'SAQ 4.0'!T177","v":false},0,0]
[null,null,null,"10a. If answered \"Yes\" to Q10, which of the following areas are covered by this policy?","GHG emissions, energy efficiency and renewables",{"$f":"'SAQ 4.0'!T180","v":false},0,0.12]
[null,null,null,null,"Water quality and consumption",{"$f":"'SAQ 4.0'!T181","v":false},0,0.12]
[null,null,null,null,"Air quality",{"$f":"'SAQ 4.0'!T182","v":false},0,0.12]
[null,null,null,null,"Sustainable Resources Management and Waste Reduction",{"$f":"'SAQ 4.0'!T183","v":false},0,0.12]
[null,null,null,null,"Responsible Chemical Management",{"$f":"'SAQ 4.0'!T184","v":false},0,0.12]
[null,null,null,null,"Other areas (please specify)",{"$f":"'SAQ 4.0'!T185","v":false},0,0]
[null,null,null,"10b. If answered \"Yes\" to Q13, do you organize training for your employees on this policy?","Yes",{"$f":"'SAQ 4.0'!T188","v":false},0,0.4]
[null,null,null,null,"No, but we communicate it through Intranet/ Brochures, etc.",{"$f":"'SAQ 4.0'!T189","v":false},0,0.2]
[null,null,null,null,"No",{"$f":"'SAQ 4.0'!T190","v":false},0,0]
[null,null,null,"Max score for indicator",null,null,0,1]
[null,"Environmental management system","High","11. Does this site have an  environmental management system in place?","Yes, we have an internationally recognised certified management system",{"$f":"'SAQ 4.0'!T193","v":false},0,0.8,{"$f":"SUMPRODUCT(G92:G97,H92:H97)","v":0},{"$f":"P7","v":0.1},{"$f":"I92*J92","v":0}]
[null,null,null,null,"Yes, we have a nationally recognised certified management system",{"$f":"'SAQ 4.0'!T198","v":false},0,0.6]
[null,null,null,null,"Yes, but the system is not certified",{"$f":"'SAQ 4.0'!T203","v":false},0,0.4]
[null,null,null,null,"No",{"$f":"'SAQ 4.0'!T204","v":false},0,0]
[null,null,null,"11a Does the site have an environmental program including targets, activities, and performance monitoring to continuously improve its environmental performance?","Yes",{"$f":"'SAQ 4.0'!T207","v":false},0,0.2]
[null,null,null,null,"No",{"$f":"'SAQ 4.0'!T208","v":false},0,0]
[null,null,null,"Max score for indicator",null,null,0,1]
[null,"Energy management system","Low","12. Does this site have an energy management system?","Yes, we have an internationally recognised certified management system",{"$f":"'SAQ 4.0'!T211","v":false},0,1,{"$f":"SUMPRODUCT(G99:G102,H99:H102)","v":0},{"$f":"N7","v":3.7499999999999999E-2},{"$f":"I99*J99","v":0}]
[null,null,null,null,"Yes, we have a nationally recognised certified management system",{"$f":"'SAQ 4.0'!T216","v":false},0,0.75]
[null,null,null,null,"Yes, but the system is not certified",{"$f":"'SAQ 4.0'!T221","v":false},0,0.5]
[null,null,null,null,"No",{"$f":"'SAQ 4.0'!T222","v":false},0,0]
[null,null,null,"Max score for indicator",null,null,0,1]
[null,"Procedures to manage substances with restrictions","Medium","13. Does this site use any substances with restrictions in production or operations?","Yes",{"$f":"'SAQ 4.0'!T236","v":false},0,0,{"$f":"SUMPRODUCT(G104:G107,H104:H107)","v":0},{"$f":"O7","v":5.8333333333333327E-2},{"$f":"I104*J104","v":0}]
[null,null,null,null,"No",{"$f":"'SAQ 4.0'!T237","v":false},0,1]
[null,null,null,"13a. If answered \"Yes\" to Q13, does this site have written procedures to manage substances with restrictions?","Yes",{"$f":"'SAQ 4.0'!T240","v":false},0,1]
[null,null,null,null,"No",{"$f":"'SAQ 4.0'!T241","v":false},0,0]
[null,null,null,"Max score for indicator",null,null,0,1]
[null,"CSR/Sustainability requirements towards suppliers","High","15. Does your company have set CSR/Sustainability Requirements towards suppliers?","Yes",{"$f":"'SAQ 4.0'!T257","v":false},0,0,{"$f":"SUMPRODUCT(G109:G138,H109:H138)","v":0},{"$f":"P7","v":0.1},{"$f":"I109*J109","v":0}]
[null,null,null,null,"No",{"$f":"'SAQ 4.0'!T258","v":false},0,0]
[null,null,null,null,"Child labour and Young Workers",{"$f":"'SAQ 4.0'!T262","v":false},0,1.7000000000000001E-2]
[null,null,null,null,"Wages and Benefits",{"$f":"'SAQ 4.0'!T263","v":false},0,1.7000000000000001E-2]
[null,null,null,null,"Working hours",{"$f":"'SAQ 4.0'!T264","v":false},0,1.7000000000000001E-2]
[null,null,null,null,"Forced or compulsory labour and human trafficking including modern slavery",{"$f":"'SAQ 4.0'!T265","v":false},0,1.7000000000000001E-2]
[null,null,null,null,"Freedom of association, incl. collective bargaining",{"$f":"'SAQ 4.0'!T266","v":false},0,1.7000000000000001E-2]
[null,null,null,null,"Harassment and non-discrimination",{"$f":"'SAQ 4.0'!T267","v":false},0,1.7000000000000001E-2]
[null,null,null,null,"Health and Safety",{"$f":"'SAQ 4.0'!T270","v":false},0,0.1]
[null,null,null,null,"Corruption, extortion and bribery",{"$f":"'SAQ 4.0'!T273","v":false},0,0.02]
[null,null,null,null,"Privacy and data protection",{"$f":"'SAQ 4.0'!T274","v":false},0,0.02]
[null,null,null,null,"Fair competition and anti-trust",{"$f":"'SAQ 4.0'!T275","v":false},0,0.02]
[null,null,null,null,"Conflicts of interest",{"$f":"'SAQ 4.0'!T276","v":false},0,0.02]
[null,null,null,null,"Whistleblowing and protection against retaliation",{"$f":"'SAQ 4.0'!T277","v":false},0,0.02]
[null,null,null,null,"GHG emissions, energy efficiency and renewables",{"$f":"'SAQ 4.0'!T280","v":false},{"$f":"IF(F123,1,0)","v":0},1.7000000000000001E-2]
[null,null,null,null,"Water quality and consumption",{"$f":"'SAQ 4.0'!T281","v":false},0,1.7000000000000001E-2]
[null,null,null,null,"Air quality",{"$f":"'SAQ 4.0'!T282","v":false},0,1.7000000000000001E-2]
[null,null,null,null,"Sustainable Resources Management and Waste Reduction",{"$f":"'SAQ 4.0'!T283","v":false},0,1.7000000000000001E-2]
[null,null,null,null,"Responsible Chemical Management",{"$f":"'SAQ 4.0'!T284","v":false},0,1.7000000000000001E-2]
[null,null,null,null,"Other areas (please specify)",{"$f":"'SAQ 4.0'!T285","v":false},0,1.7000000000000001E-2]
[null,null,null,null,"Upstream Supplier Management",{"$f":"'SAQ 4.0'!T288","v":false},0,0.1]
[null,null,null,"15b. If answered \"Yes\" to Q16, does your company use any of the following channels to communicate its Supplier CSR/Sustainability Requirements to your suppliers?","Included in Terms & Conditions",{"$f":"'SAQ 4.0'!T291","v":false},0,0.1]
[null,null,null,null,"Supplier Training",{"$f":"'SAQ 4.0'!T292","v":false},0,7.0000000000000007E-2]
[null,null,null,null,"Supplier Code of Conduct/ Supplier Sustainability Policy",{"$f":"'SAQ 4.0'!T293","v":false},0,0.05]
[null,null,null,null,"Company website/ Supplier Portal",{"$f":"'SAQ 4.0'!T294","v":false},0,0.03]
[null,null,null,null,"None",{"$f":"'SAQ 4.0'!T295","v":false},0,0]
[null,null,null,"15c Which processes does your company have in place to review if your suppliers fulfil your requirements?","2nd party audits conducted by the company",{"$f":"'SAQ 4.0'!T298","v":false},0,0.1]
[null,null,null,null,"3rd party audits conducted by an accredited certification body",{"$f":"'SAQ 4.0'!T299","v":false},0,0.1]
[null,null,null,null,"Self-assessment questionnaire",{"$f":"'SAQ 4.0'!T300","v":false},0,0.05]
[null,null,null,null,"None",{"$f":"'SAQ 4.0'!T301","v":false},0,0]
[null,null,null,"Max score for indicator",null,null,0,1]
[null,"Policy on responsible sourcing of raw materials","Medium","16. Are any of the following materials contained in your products? (Tick all that apply)","Yes",true,1,0,{"$f":"SUMPRODUCT(G140:G147,H140:H147)","v":0},{"$f":"O7","v":5.8333333333333327E-2},{"$f":"I140*J140","v":0}]
[null,null,null,null,"No",{"$f":"'SAQ 4.0'!T315","v":false},0,1]
[null,null,null,"16a. If any raw material from the list above selected, does your company have a policy on responsible sourcing of these raw materials? ","Yes",{"$f":"'SAQ 4.0'!T318","v":false},0,1]
[null,null,null,null,"No",{"$f":"'SAQ 4.0'!T319","v":false},0,0]
[null,null,null,"16b. If tantalum, tin, tungsten or gold are selected, do you have a company scope Conflcit Minerals Reporting Template (CMRT)?","Yes",{"$f":"'SAQ 4.0'!T322","v":false},0,0]
[null,null,null,null,"No",{"$f":"'SAQ 4.0'!T323","v":false},0,0]
[null,null,null,"16c. If cobalt is selected, do you have a Cobalt Reporting Template (CRT)?","Yes",{"$f":"'SAQ 4.0'!T326","v":false},0,0]
[null,null,null,null,"No",{"$f":"'SAQ 4.0'!T327","v":false},0,0]
[null,null,null,"Max score for indicator",null,null,0,1]
[]
[null,null,null,null,null,null,null,null,null,null,{"$f":"SUM(K3:K148)","v":0}]
[null,null,null,null,null,null,null,null,null,null,{"$f":"ROUND(K150,3)","v":0}]